bitfinex/quotes_ETHUSD_20260107
["timestamp","ask_amount","ask_price","bid_price","bid_amount"]
[1767749090663,0.93172755,3254.3,3253.3,0.002]
[1767749092369,0.93172755,3254.1,3253.0,0.807]
[1767749092544,0.93172755,3253.9,3253.0,0.807]
[1767749093051,0.93172755,3253.9,3253.0,3.88106443]
[1767749093451,0.93172755,3253.9,3253.0,0.002]
[1767749093651,0.93172755,3253.9,3253.0,0.807]
[1767749093964,0.93172755,3253.9,3253.0,3.88103123]
[1767749094173,1.09567662,3253.9,3253.0,3.88103123]
[1767749094893,3.07332964,3253.8,3253.0,0.807]
[1767749095947,1.09567662,3253.9,3253.0,3.88108406]
[1767749096151,7.07763129,3254.2,3253.1,0.92168063]
[1767749096658,4.00467942,3254.2,3253.1,0.92168063]
[1767749096857,6.14590374,3254.2,3253.1,0.92168063]
[1767749097174,0.93172755,3254.1,3253.1,3.99565821]
[1767749097679,0.93272755,3254.4,3253.2,0.95241959]
[1767749097880,0.93272755,3254.4,3253.4,0.92722743]
[1767749097881,0.001,3254.4,3253.4,0.92722743]
[1767749098176,0.001,3254.4,3253.6,0.92722743]
[1767749098347,0.001,3254.4,3253.7,0.805]
[1767749098548,3.07385507,3254.4,3253.7,0.805]
[1767749098748,3.97482905,3254.4,3253.7,0.805]
[1767749100553,7.75243223,3254.4,3253.7,0.805]
[1767749100977,4.67957716,3254.4,3253.7,0.805]
[1767749101651,4.67957716,3254.4,3253.6,0.805]
[1767749101848,0.95522104,3254.3,3253.3,0.002]
[1767749102164,0.95522104,3254.0,3253.3,0.002]
[1767749103772,0.95522104,3253.8,3253.3,0.002]
[1767749103958,0.71016914,3253.7,3253.3,0.002]
[1767749104559,0.71016914,3253.7,3253.3,0.0005651]
[1767749105387,3.07323519,3253.9,3253.3,0.0005651]
[1767749105562,0.001,3254.1,3253.3,0.91306266]
[1767749105762,0.001,3254.1,3253.5,3.98611059]
[1767749105955,0.001,3254.1,3253.5,4.79111059]
[1767749106495,0.001,3254.1,3253.6,0.94323274]
[1767749106676,0.001,3254.4,3253.8,0.91249756]
[1767749106853,0.001,3254.8,3253.8,0.91249756]
[1767749107506,4.02779589,3255.7,3254.4,0.91249756]
[1767749107666,4.02779589,3255.7,3254.7,7.05745714]
[1767749107667,0.001,3255.7,3254.7,7.05745714]
[1767749107868,0.001,3255.7,3254.8,0.805]
[1767749108085,0.61539141,3255.7,3254.8,0.805]
[1767749108856,0.001,3255.7,3254.9,0.91249756]
[1767749109773,0.001,3255.7,3254.9,3.98474063]
[1767749109984,0.001,3255.7,3254.9,0.91249756]
[1767749110572,0.001,3255.7,3254.9,3.98478782]
[1767749110974,0.001,3255.7,3254.9,7.05707882]
[1767749111174,0.001,3255.7,3255.1,0.91249756]
[1767749111688,0.95522104,3256.7,3255.1,0.91249756]
[1767749111860,0.95522104,3256.5,3255.2,7.86151328]
[1767749112484,0.95522104,3256.5,3255.0,0.78620788]
[1767749112485,0.95522104,3256.5,3255.3,0.805]
[1767749112678,0.95522104,3256.5,3255.4,0.805]
[1767749112870,0.95522104,3256.3,3255.4,0.80381833]
[1767749113275,0.95522104,3256.3,3255.4,0.8006467]
[1767749113591,1.01672827,3256.4,3255.4,0.7986467]
[1767749114093,1.01672827,3256.4,3255.4,0.805]
[1767749114267,3.07091567,3256.4,3255.4,0.805]
[1767749114908,0.95522104,3256.9,3255.1,3.98456987]
[1767749115189,0.95522104,3256.9,3255.2,0.805]
[1767749115599,0.95522104,3256.9,3255.2,1.71749756]
[1767749115797,1.97183617,3256.8,3255.4,0.91249756]
[1767749115983,6.14118586,3256.7,3255.4,0.91249756]
[1767749116182,0.95522104,3256.6,3255.0,0.91249756]
[1767749116408,0.95522104,3256.6,3255.3,0.805]
[1767749116563,3.07059293,3256.7,3255.5,0.91249756]
[1767749116767,0.71577025,3256.7,3255.6,1.31092785]
[1767749116997,3.07053127,3256.8,3255.6,1.31092785]
[1767749117302,6.14106254,3256.8,3255.7,0.805]
[1767749117671,3.07053127,3256.8,3255.7,0.805]
[1767749117980,7.09628358,3256.8,3255.8,0.805]
[1767749118488,0.95522104,3256.7,3255.3,3.98437784]
[1767749118802,1.97190252,3256.6,3255.4,0.805]
[1767749119398,1.01668148,3256.6,3255.6,3.07162696]
[1767749119702,6.14106254,3256.8,3255.9,0.91249756]
[1767749119890,6.14106254,3256.8,3256.0,0.805]
[1767749120268,7.0956527,3257.1,3256.0,0.805]
[1767749120667,0.95522104,3257.0,3256.0,0.805]
[1767749120873,0.95522104,3257.0,3255.5,0.91249756]
[1767749121105,0.95522104,3256.8,3255.9,0.805]
[1767749121307,0.95522104,3256.8,3255.0,3.15830267]
[1767749121308,0.95522104,3256.8,3255.1,0.91249756]
[1767749121602,1.01658685,3256.9,3255.7,3.98402672]
[1767749121799,1.97180789,3256.9,3255.8,0.805]
[1767749121983,1.97180789,3256.9,3255.8,4.78893106]
[1767749122179,1.01658685,3256.9,3256.0,3.98375037]
[1767749122382,1.01658685,3256.9,3256.0,0.91249756]
[1767749122572,3.07045803,3256.9,3256.0,0.91249756]
[1767749122781,0.95522104,3257.3,3256.0,3.98373195]
[1767749123002,0.805,3257.5,3255.8,0.805]
[1767749123003,0.95522104,3257.1,3255.8,0.805]
[1767749124291,0.95522104,3257.1,3255.8,3.87640379]
[1767749124607,6.1406202,3257.0,3255.8,0.805]
[1767749124810,1.66480516,3256.9,3255.9,0.804]
[1767749125611,0.70958412,3256.9,3256.0,0.91249756]
[1767749125794,3.0713101,3257.0,3256.0,0.91249756]
[1767749126181,0.001,3257.0,3256.2,0.91249756]
[1767749126811,0.001,3257.0,3256.3,3.98346767]
[1767749127207,0.001,3257.0,3256.4,0.91249756]
[1767749127393,0.001,3257.0,3256.5,0.804]
[1767749127588,0.001,3257.0,3256.6,0.91249756]
[1767749128018,0.95622104,3258.3,3256.6,0.91249756]
[1767749128322,0.95522104,3258.0,3256.6,0.91249756]
[1767749128503,0.95522104,3258.0,3256.7,0.804]
[1767749128679,9.20838576,3257.9,3256.5,1.69834134]
[1767749128880,1.01636068,3257.8,3256.6,0.804]
[1767749129291,1.97158172,3257.8,3256.7,0.804]
[1767749130025,1.01636068,3257.8,3256.8,0.91249756]
[1767749130581,1.01636068,3257.8,3256.5,3.98325748]
[1767749130784,1.97158172,3257.8,3256.6,0.804]
[1767749130987,6.13930072,3257.7,3256.7,0.47872575]
[1767749131725,1.14437023,3258.2,3256.8,0.98564159]
[1767749131885,3.0692735,3258.1,3256.8,0.98564159]
[1767749132186,6.138547,3258.1,3256.8,0.98564159]
[1767749132387,6.86693872,3258.1,3256.8,0.98564159]
[1767749132815,0.92692586,3258.0,3256.9,0.804]
[1767749133011,10.13531162,3257.9,3256.9,0.804]
[1767749133218,10.13531162,3257.9,3256.5,4.08706331]
[1767749133419,0.92692586,3257.7,3256.6,0.40870633]
[1767749133721,0.21744437,3258.2,3257.3,0.98564159]
[1767749133948,0.001,3259.4,3257.2,0.05542128]
[1767749133949,0.92792586,3259.4,3258.1,0.05542128]
[1767749134086,3.06854465,3258.9,3258.2,0.804]
[1767749134718,3.06877541,3258.7,3258.2,0.804]
[1767749134906,3.06827198,3259.2,3258.2,0.804]
[1767749135216,3.06834561,3259.1,3258.1,1.03906287]
[1767749135421,0.001,3259.4,3258.3,0.98564159]
[1767749135621,0.001,3259.4,3258.8,1.04106287]
[1767749135822,0.001,3259.4,3258.4,0.79279759]
[1767749136025,0.001,3259.4,3258.5,0.804]
[1767749136238,0.92692586,3259.3,3258.5,0.804]
[1767749136393,0.001,3259.4,3258.5,0.804]
[1767749136592,0.001,3259.4,3258.0,0.98564159]
[1767749136593,0.92692586,3259.3,3258.6,0.804]
[1767749136793,0.92692586,3259.3,3258.6,0.802]
[1767749137011,6.13666348,3259.1,3258.6,0.72855028]
[1767749137222,3.06833174,3259.1,3258.5,0.804]
[1767749137405,3.06828188,3259.2,3258.5,0.804]
[1767749137726,6.13656376,3259.2,3258.1,0.05542128]
[1767749138030,3.06828188,3259.2,3258.2,0.804]
[1767749138228,0.30682819,3259.1,3257.9,4.11050589]
[1767749138433,0.30682819,3259.1,3257.9,0.98564159]
[1767749138618,1.23375405,3259.1,3258.0,0.804]
[1767749138802,1.23375405,3259.1,3258.1,0.804]
[1767749139000,3.06842589,3259.0,3258.1,0.804]
[1767749139200,3.80547909,3259.0,3258.2,0.804]
[1767749139422,0.92692586,3258.9,3258.2,0.804]
[1767749139618,0.92692586,3259.3,3258.2,0.804]
[1767749139996,0.92692586,3259.3,3258.2,0.85942128]
[1767749140907,0.92692586,3259.3,3257.7,0.98564159]
[1767749141132,0.92692586,3259.1,3257.8,3.95963769]
[1767749141313,3.77464103,3259.2,3257.8,3.95963769]
[1767749141314,3.77464103,3259.2,3258.1,0.98564159]
[1767749141506,0.001,3259.4,3258.1,1.01633432]
[1767749141836,3.06908328,3259.4,3258.3,0.98564159]
[1767749142008,3.06908328,3259.4,3258.4,1.78964159]
[1767749142214,0.001,3259.4,3258.4,1.78964159]
[1767749143127,3.06905959,3259.4,3258.4,1.78964159]
[1767749143335,6.84351408,3259.4,3258.4,1.78964159]
[1767749143630,3.77545449,3259.4,3258.4,1.78964159]
[1767749143835,0.001,3259.7,3259.1,0.98564159]
[1767749144008,0.001,3259.7,3259.2,0.804]
[1767749145104,0.001,3259.7,3258.7,0.05542128]
[1767749145312,0.001,3259.7,3258.9,0.05542128]
[1767749145616,0.001,3259.7,3258.9,4.10955189]
[1767749145816,0.001,3259.7,3259.0,0.49135519]
[1767749146039,0.001,3259.7,3259.1,0.804]
[1767749146839,0.92792586,3259.7,3258.5,0.98564159]
[1767749147022,0.92792586,3259.7,3258.6,0.804]
[1767749147212,3.06786108,3259.6,3258.6,0.804]
[1767749147412,0.39957869,3259.5,3258.7,0.03068708]
[1767749147736,0.39957869,3259.5,3258.6,1.78964159]
[1767749147940,0.39957869,3259.5,3258.6,0.804]
[1767749148246,0.39957869,3259.5,3258.3,0.03069085]
[1767749148435,0.39957869,3259.5,3258.7,0.804]
[1767749148634,0.65353009,3259.4,3258.8,0.804]
[1767749149428,3.06814346,3259.3,3258.8,0.804]
[1767749149641,3.72261741,3259.4,3258.8,0.804]
[1767749149818,6.79070473,3259.4,3258.8,0.804]
[1767749150332,3.72261741,3259.4,3258.8,0.804]
[1767749151039,3.72261741,3259.4,3258.2,4.08545575]
[1767749151040,1.64594139,3259.3,3258.6,0.804]
[1767749151242,1.64594139,3259.3,3257.9,1.07175748]
[1767749151434,6.13666348,3259.1,3258.0,0.804]
[1767749151615,3.06833174,3259.1,3258.0,0.804]
[1767749151817,6.91491676,3259.1,3258.0,1.29853113]
[1767749152847,3.84658502,3259.1,3258.0,0.49453113]
[1767749153016,6.91491676,3259.1,3258.0,0.49453113]
[1767749153218,6.91491676,3259.1,3258.1,0.804]
[1767749153547,0.92692586,3259.0,3257.7,0.98564159]
[1767749153753,0.92692586,3259.0,3257.8,0.804]
[1767749154522,0.92692586,3259.0,3257.8,1.78964159]
[1767749154725,0.92692586,3259.0,3257.9,0.98564159]
[1767749154920,1.09101744,3258.9,3257.9,0.98564159]
[1767749155243,1.09101744,3258.9,3258.0,0.804]
[1767749155455,7.06434262,3258.7,3257.5,0.98564159]
[1767749155619,0.92692586,3258.6,3257.6,0.804]
[1767749156249,0.92692586,3258.6,3257.5,0.98462489]
[1767749156428,0.92692586,3258.4,3257.6,0.804]
[1767749156635,0.92692586,3258.4,3257.1,0.98564159]
[1767749156824,0.92692586,3258.4,3257.2,0.804]
[1767749157151,0.92692586,3258.4,3257.1,0.98564159]
[1767749157346,0.92692586,3258.4,3257.2,0.804]
[1767749157547,6.1383586,3258.2,3257.2,0.804]
[1767749158154,3.26313127,3258.3,3257.3,1.01634186]
[1767749158322,6.33223944,3258.3,3257.3,0.98564159]
[1767749159255,3.06910817,3258.3,3257.3,0.98564159]
[1767749159550,3.06899091,3258.4,3257.3,0.98564159]
[1767749159740,3.06899091,3258.4,3257.4,1.01634092]
[1767749160437,0.92692586,3259.0,3257.4,0.98564159]
[1767749160633,0.92692586,3259.0,3257.4,1.01634092]
[1767749160634,0.92692586,3258.9,3257.4,1.01634092]
[1767749160834,1.11231103,3258.8,3257.5,0.98564159]
[1767749161552,1.11231103,3258.8,3257.7,0.002]
[1767749161734,6.13741676,3258.7,3257.8,0.804]
[1767749161941,0.72497278,3258.6,3257.8,0.804]
[1767749162562,0.72497278,3258.6,3257.9,0.98984542]
[1767749162727,3.25403366,3258.8,3257.9,0.98984542]
[1767749162926,0.18538517,3258.8,3257.9,0.98984542]
[1767749163323,0.9677786,3259.1,3257.9,0.98984542]
[1767749163561,3.06907636,3259.4,3257.9,1.0452667]
[1767749163759,0.9687786,3259.4,3257.7,0.96115081]
[1767749164055,0.9687786,3259.4,3258.0,0.804]
[1767749164767,0.9687786,3259.4,3257.7,0.96115081]
[1767749165226,0.9687786,3259.4,3257.8,1.72735504]
[1767749165428,0.9687786,3259.4,3257.8,0.92335504]
[1767749165627,0.9687786,3259.4,3257.9,0.804]
[1767749165847,9.20443038,3259.3,3257.9,0.804]
[1767749166050,0.96817588,3259.2,3257.9,0.804]
[1767749166250,1.98543651,3259.1,3257.9,0.804]
[1767749166562,0.96817588,3259.0,3257.9,0.804]
[1767749166926,1.01726063,3259.1,3258.0,0.92335504]
[1767749167123,1.98543651,3259.1,3258.0,0.92335504]
[1767749167864,1.98543651,3259.1,3258.1,0.804]
[1767749168057,6.1370401,3258.9,3258.1,0.804]
[1767749168360,0.96917588,3259.4,3258.2,0.92335504]
[1767749168557,6.13628692,3259.3,3258.2,0.92335504]
[1767749168736,3.06814346,3259.3,3258.2,0.92335504]
[1767749168930,0.001,3259.4,3258.4,0.92335504]
[1767749169132,3.06905807,3259.4,3258.4,0.92335504]
[1767749169627,0.001,3259.4,3258.4,0.92335504]
[1767749169827,3.06906047,3259.4,3258.4,0.92335504]
[1767749170830,0.001,3259.4,3258.4,0.92335504]
[1767749171439,0.001,3259.4,3258.5,1.34017951]
[1767749171663,0.001,3259.4,3258.2,0.95404683]
[1767749171664,0.96917588,3259.4,3258.2,0.95404683]
[1767749171829,0.96917588,3259.4,3258.2,0.804]
[1767749172036,0.96917588,3259.4,3258.2,1.72735504]
[1767749173060,6.13628692,3259.3,3258.2,1.72735504]
[1767749173755,6.13628692,3259.3,3258.3,0.92335504]
[1767749173953,7.15363471,3259.3,3258.4,0.95404494]
[1767749174260,0.96817588,3259.2,3258.3,0.804]
[1767749174462,0.96817588,3259.0,3257.8,0.9540506]
[1767749174664,0.96817588,3259.0,3257.9,0.804]
[1767749174963,3.06852005,3258.9,3257.9,0.98000506]
[1767749175465,6.1370401,3258.9,3257.9,1.9033601]
[1767749176476,0.96817588,3258.8,3257.7,0.002]
[1767749176666,0.96817588,3258.8,3257.7,0.806]
[1767749176853,0.96817588,3258.8,3257.7,0.002]
[1767749177035,12.2740802,3258.9,3257.4,0.002]
[1767749177036,0.96817588,3258.6,3257.4,0.002]
[1767749177236,0.96817588,3258.4,3257.4,0.002]
[1767749178060,0.96817588,3258.4,3256.8,0.9222018]
[1767749178769,0.96817588,3258.4,3256.4,0.95406379]
[1767749179064,0.96817588,3258.2,3256.4,0.95406379]
[1767749179254,0.96817588,3258.0,3256.4,0.95406379]
[1767749179459,0.96817588,3257.8,3256.5,1.09916142]
[1767749181147,6.13930072,3257.7,3256.5,1.09916142]
[1767749182644,0.96817588,3257.6,3256.5,1.09916142]
[1767749182870,0.96817588,3257.6,3256.5,0.92335504]
[1767749183067,1.77217588,3257.6,3256.5,0.92335504]
[1767749183442,6.13967766,3257.5,3256.5,0.92335504]
[1767749184473,0.96817588,3257.4,3256.1,0.92335504]
[1767749184656,1.59518535,3257.4,3256.3,0.92335504]
[1767749184859,1.59518535,3257.4,3256.5,0.92335504]
[1767749185176,1.59518535,3257.4,3256.6,0.95406191]
[1767749185673,3.07002732,3257.3,3256.6,0.95406191]
[1767749185972,4.66515282,3257.4,3256.6,0.95406191]
[1767749186679,4.66515282,3257.4,3256.8,0.002]
[1767749186973,0.001,3257.3,3256.8,0.002]
[1767749188290,0.69549349,3257.3,3256.8,0.002]
[1767749188450,1.66366937,3257.3,3256.8,0.002]
[1767749188648,1.66366937,3257.3,3256.5,0.002]
[1767749190082,3.07012157,3257.2,3256.5,0.002]
[1767749190453,0.69549349,3257.3,3256.5,0.95606285]
[1767749190650,0.001,3257.3,3256.6,0.92335504]
[1767749190867,0.001,3257.3,3256.8,0.92335504]
[1767749191073,0.001,3257.3,3257.0,0.92335504]
[1767749191376,0.001,3257.3,3257.1,0.03070215]
[1767749191684,0.001,3257.3,3257.0,0.92335504]
[1767749192254,0.9095733,3258.4,3257.1,0.99744033]
[1767749192487,3.06899091,3258.4,3257.1,0.99744033]
[1767749192652,3.06899091,3258.4,3257.1,1.05286161]
[1767749193594,0.804,3258.7,3257.4,0.96673818]
[1767749193762,0.001,3259.1,3257.6,0.96673818]
[1767749194084,0.001,3259.1,3257.8,0.96673818]
[1767749194264,0.001,3259.1,3258.0,0.96673818]
[1767749194583,0.001,3259.1,3258.2,0.96673818]
[1767749195253,0.001,3259.1,3257.9,3.06946192]
[1767749195447,0.001,3259.1,3258.0,0.804]
[1767749195655,0.9105733,3259.1,3257.9,0.804]
[1767749195856,0.9105733,3259.1,3257.7,0.18261595]
[1767749196056,0.9105733,3259.1,3257.8,0.804]
[1767749196257,7.04642508,3259.0,3257.8,0.804]
[1767749196748,0.9095733,3258.9,3257.8,0.804]
[1767749196950,0.9095733,3258.9,3257.7,4.05623145]
[1767749197151,0.9095733,3258.9,3257.8,0.50229696]
[1767749197758,0.9095733,3258.9,3257.7,0.18261595]
[1767749198167,6.13722842,3258.8,3257.7,0.18261595]
[1767749198858,7.04680172,3258.8,3257.7,0.18061595]
[1767749199186,7.04680172,3258.8,3257.6,0.99743562]
[1767749199187,3.97818751,3258.8,3257.6,0.99743562]
[1767749199355,3.06861421,3258.8,3257.6,0.99743562]
[1767749199553,3.06861421,3258.8,3257.6,1.0528569]
[1767749199753,3.06861421,3258.8,3257.7,0.96673818]
[1767749199985,0.001,3258.6,3257.7,0.96673818]
[1767749200284,0.001,3258.6,3257.8,0.96673818]
[1767749200485,0.001,3258.6,3257.4,3.06991838]
[1767749200486,0.9095733,3258.5,3257.1,0.9657372]
[1767749200954,0.001,3258.6,3257.6,0.96673818]
[1767749201155,0.001,3258.6,3257.7,0.99743468]
[1767749201387,0.001,3258.6,3257.8,0.96673818]
[1767749202585,0.9105733,3258.6,3257.1,0.96673818]
[1767749202761,0.9105733,3258.6,3256.8,0.002]
[1767749202762,0.9095733,3258.4,3256.8,4.87390549]
[1767749202969,0.9095733,3258.2,3257.0,0.96673818]
[1767749203583,0.9095733,3258.2,3256.8,0.002]
[1767749203781,0.9095733,3258.0,3256.8,0.002]
[1767749204452,7.04849714,3257.9,3256.8,0.002]
[1767749204653,0.804,3257.8,3256.8,0.002]
[1767749204890,0.9105733,3259.1,3257.2,0.96673818]
[1767749205097,3.06889673,3258.5,3257.4,0.96673818]
[1767749205387,0.30698967,3258.4,3257.2,0.804]
[1767749205964,1.21656297,3258.4,3257.1,0.96673818]
[1767749207060,6.1381702,3258.3,3257.1,0.96673818]
[1767749207383,6.1381702,3258.3,3257.2,0.03070121]
[1767749207384,3.8730851,3258.3,3257.2,0.03070121]
[1767749208179,6.9421702,3258.3,3257.2,0.03070121]
[1767749208382,0.81587332,3258.2,3257.1,0.96673818]
[1767749208892,0.804,3258.3,3257.2,0.99743939]
[1767749209186,3.87316612,3258.3,3257.2,4.03680984]
[1767749210069,3.87316612,3258.3,3257.2,4.03683747]
[1767749210265,3.06916612,3258.3,3257.3,0.96673818]
[1767749210473,3.06889673,3258.5,3257.4,0.99743751]
[1767749210666,3.4562864,3258.5,3257.4,0.99743751]
[1767749211191,6.52518313,3258.5,3257.4,0.96673818]
[1767749211371,3.4562864,3258.5,3257.4,0.96673818]
[1767749211703,3.4562864,3258.5,3257.5,0.03069838]
[1767749212289,3.4562864,3258.5,3257.4,0.96673818]
[1767749212492,3.4562864,3258.5,3257.4,1.37348319]
[1767749212665,6.52518313,3258.5,3257.4,1.37348319]
[1767749212865,6.52518313,3258.5,3257.4,0.96673818]
[1767749213887,7.43475643,3258.5,3257.4,0.96673818]
[1767749217099,6.52518313,3258.5,3257.4,0.96673818]
[1767749218320,3.06984832,3258.6,3257.5,0.96673818]
[1767749218467,0.99326578,3258.5,3257.4,0.804]
[1767749218668,0.99326578,3258.5,3257.2,0.94771713]
[1767749218896,6.13798182,3258.4,3257.3,3.07000605]
[1767749219096,6.85120658,3258.4,3257.4,0.48217232]
[1767749219604,0.71322476,3258.4,3257.5,0.94771713]
[1767749219776,3.06891421,3258.5,3257.5,0.94771713]
[1767749219969,7.1310942,3258.5,3257.5,0.94771713]
[1767749220408,4.06217999,3258.5,3257.5,0.94771713]
[1767749220993,7.1310942,3258.5,3257.5,0.94771713]
[1767749221169,7.1310942,3258.5,3257.4,0.48217232]
[1767749221170,6.13782842,3258.5,3257.4,0.48217232]
[1767749221364,0.92794862,3258.3,3257.2,0.94771713]
[1767749221564,0.92794862,3258.1,3256.8,0.002]
[1767749222602,0.92794862,3257.9,3256.8,0.002]
[1767749223093,0.92794862,3257.7,3256.8,0.002]
[1767749223298,0.92794862,3257.5,3256.8,0.002]
[1767749224469,0.92794862,3257.5,3256.9,0.03070404]
[1767749225083,3.77646249,3257.6,3256.9,0.03070404]
[1767749225271,3.77646249,3257.6,3256.9,0.02970109]
[1767749225472,3.77646249,3257.6,3256.8,0.002]
[1767749225672,3.77646249,3257.6,3256.9,0.03070404]
[1767749225873,3.77646249,3257.6,3256.8,0.002]
[1767749226196,1.61256224,3257.5,3256.8,0.002]
[1767749226528,0.92794862,3257.4,3256.8,0.002]
[1767749227001,3.07002732,3257.3,3256.8,0.002]
[1767749227504,7.06800326,3257.3,3256.8,0.002]
[1767749227734,0.92794862,3257.2,3256.5,0.002]
[1767749227889,0.92794862,3257.0,3255.9,0.9073892]
[1767749228506,0.92794862,3257.0,3255.4,0.90839411]
[1767749228879,0.9833699,3257.0,3255.4,0.90839411]
[1767749229080,0.92794862,3256.8,3255.4,0.90839411]
[1767749229407,0.92794862,3256.6,3255.4,3.98019725]
[1767749229579,0.804,3256.5,3255.4,3.98019725]
[1767749230706,0.804,3256.5,3255.4,0.90839411]
[1767749231008,1.73194862,3256.5,3255.4,0.90839411]
[1767749231539,3.07087581,3256.4,3255.4,3.98021263]
[1767749231735,0.92794862,3256.3,3255.1,0.002]
[1767749232491,1.73194862,3256.2,3255.1,0.002]
[1767749232809,0.92794862,3256.1,3255.1,0.002]
[1767749233393,0.92794862,3256.1,3255.1,3.07408535]
[1767749233588,3.07125307,3256.0,3255.1,0.002]
[1767749233816,3.07125307,3256.0,3255.1,1.30864579]
[1767749235276,0.804,3255.9,3255.1,1.30864579]
[1767749235692,3.07099428,3256.3,3255.2,0.90839411]
[1767749235893,0.804,3256.2,3255.2,0.90839411]
[1767749236092,0.92794862,3256.1,3255.1,0.40025168]
[1767749236419,1.71534642,3256.1,3255.1,0.40025168]
[1767749237916,6.14250614,3256.0,3255.4,0.002]
[1767749238086,0.92794862,3255.9,3254.6,0.90839411]
[1767749238287,0.92794862,3255.9,3254.6,0.9073892]
[1767749238519,0.92794862,3255.9,3255.0,0.002]
[1767749238686,0.92794862,3255.7,3254.2,0.90739116]
[1767749238889,0.92794862,3255.5,3254.2,0.90739116]
[1767749239701,6.14363826,3255.4,3254.2,0.90739116]
[1767749239889,6.14363826,3255.4,3253.7,0.002]
[1767749239890,0.92794862,3255.3,3254.0,0.90839411]
[1767749240090,0.92794862,3255.3,3254.0,3.98147769]
[1767749240291,0.70715869,3255.2,3254.1,0.39814777]
[1767749240594,1.73194862,3255.1,3254.0,0.90839411]
[1767749240893,0.92794862,3255.0,3253.7,0.91039411]
[1767749241919,3.876291,3254.9,3253.8,3.07330438]
[1767749242294,6.948582,3254.9,3253.8,3.07330438]
[1767749242683,0.92794862,3254.8,3253.7,3.98379214]
[1767749242889,0.78765306,3254.7,3253.7,3.98379214]
[1767749243114,0.78765306,3254.7,3253.8,0.90839411]
[1767749243323,0.804,3254.6,3253.9,0.03073235]
[1767749243520,0.804,3254.6,3253.9,0.93912646]
[1767749243817,0.804,3254.6,3253.8,3.07329416]
[1767749244022,0.804,3254.6,3253.9,3.10392151]
[1767749244390,0.804,3254.9,3254.0,0.90839411]
[1767749244919,3.07167379,3255.6,3254.0,0.90839411]
[1767749244920,3.87601222,3255.2,3254.0,0.90839411]
[1767749245787,3.87601222,3255.2,3254.2,0.90839411]
[1767749246641,0.805,3255.2,3254.2,0.90839411]
[1767749246926,0.805,3255.4,3254.4,0.90839411]
[1767749247796,3.87686229,3255.4,3254.4,3.98106713]
[1767749248029,3.87686229,3255.4,3254.5,0.90839411]
[1767749248519,0.92794862,3256.0,3254.5,0.90839411]
[1767749248723,0.805,3255.9,3254.7,0.90839411]
[1767749249424,0.805,3255.9,3254.7,0.9391189]
[1767749249628,3.07115874,3256.1,3254.7,0.9391189]
[1767749249811,3.07107668,3256.2,3254.9,0.90839411]
[1767749250123,0.805,3256.1,3255.1,0.90839411]
[1767749250924,1.73294862,3256.1,3255.1,0.90839411]
[1767749251123,0.001,3255.2,3254.5,3.07261822]
[1767749251495,0.001,3255.2,3254.4,0.90839411]
[1767749252029,0.001,3255.2,3254.4,3.98113275]
[1767749252227,0.001,3255.2,3254.4,4.68654096]
[1767749252526,0.001,3255.2,3254.4,1.61380232]
[1767749252825,0.9177136,3255.1,3254.2,3.07293033]
[1767749253030,0.9177136,3255.1,3254.1,0.804]
[1767749253233,0.001,3255.2,3254.4,3.07276269]
[1767749253434,0.001,3255.2,3254.5,0.98107057]
[1767749253597,0.001,3255.2,3254.5,1.01179725]
[1767749253803,0.001,3255.2,3254.8,7.12584137]
[1767749254202,0.001,3255.2,3254.8,4.05345597]
[1767749254704,0.001,3255.2,3254.6,3.78825276]
[1767749255005,0.001,3255.2,3254.7,3.07242728]
[1767749256131,0.001,3255.2,3254.6,3.78828691]
[1767749256536,0.001,3255.2,3254.7,1.76527001]
[1767749256732,0.001,3255.2,3254.8,0.98107057]
[1767749257661,0.001,3255.2,3254.1,4.054028]
[1767749257861,0.001,3255.2,3253.8,0.98107057]
[1767749257862,0.9187136,3255.2,3253.8,0.98107057]
[1767749258028,3.99077359,3255.2,3254.0,0.98307057]
[1767749258655,0.001,3255.2,3254.2,0.98107057]
[1767749259159,3.07300915,3255.2,3254.2,0.98107057]
[1767749259327,0.9177136,3255.1,3254.0,0.002]
[1767749259925,3.98985002,3255.1,3254.1,3.07304631]
[1767749260137,0.806,3255.2,3254.1,4.05411688]
[1767749260325,3.87801706,3255.2,3254.2,0.40561169]
[1767749260755,0.806,3255.2,3254.2,0.40561169]
[1767749260942,3.87801684,3255.2,3254.2,1.38668226]
[1767749261143,0.806,3255.2,3254.2,1.38668226]
[1767749261524,0.001,3255.2,3254.3,0.98107057]
[1767749261749,0.001,3255.2,3254.0,0.002]
[1767749261750,0.9177136,3255.1,3254.0,0.002]
[1767749261920,0.9177136,3254.9,3254.0,0.002]
[1767749262252,0.9177136,3254.8,3253.7,0.002]
[1767749264470,0.9177136,3254.6,3253.7,0.002]
[1767749265047,0.9177136,3254.6,3253.7,0.03273424]
[1767749265243,0.9177136,3254.6,3253.8,0.61817239]
[1767749265771,3.878311,3254.9,3253.8,0.61817239]
[1767749266264,4.7960246,3254.9,3253.8,0.61817239]
[1767749266762,0.9177136,3254.8,3253.9,3.07323519]
[1767749267246,3.878311,3254.9,3253.9,3.07323519]
[1767749267429,3.878311,3254.9,3253.9,3.84801409]
[1767749268033,0.806,3254.9,3253.9,7.90231985]
[1767749268238,0.001,3254.9,3254.0,0.98107057]
[1767749268425,0.001,3254.9,3254.1,0.98107057]
[1767749268852,0.001,3254.9,3254.2,3.07295187]
[1767749269159,0.001,3254.9,3254.3,0.98107057]
[1767749269326,0.001,3254.9,3254.3,1.01179914]
[1767749269524,0.001,3254.9,3254.3,0.98107057]
[1767749271650,0.001,3254.9,3254.4,3.07276302]
[1767749273863,0.001,3254.9,3254.4,6.14552604]
[1767749274038,0.001,3254.9,3254.5,0.71265966]
[1767749274233,0.001,3254.9,3254.5,1.69373023]
[1767749276254,0.001,3254.9,3254.5,4.76637982]
[1767749276868,0.001,3254.6,3254.5,4.76637982]
[1767749278443,0.001,3254.9,3254.5,4.76637982]
[1767749278650,0.001,3254.9,3254.6,1.45436665]
[1767749279034,0.001,3254.9,3254.6,0.47663798]
[1767749282560,0.001,3254.9,3254.4,0.97772867]
[1767749282764,0.96941947,3254.9,3253.6,0.002]
[1767749283274,0.96941947,3254.9,3253.0,0.002]